[Event "28th Hit Open-A 2024"]
[Site "Nova Gorica"]
[Date "2024.02.02"]
[Round "9.41"]
[White "Mihelj, Edvard"]
[Black "Cortese, Lina"]
[Result "0-1"]
[ECO "C00"]
[WhiteElo "1618"]
[BlackElo "1582"]
[Annotator "NA"]
[PlyCount "86"]
[EventDate "2024.01.22"]
[EventType "swiss"]
[EventCountry "SLO"]
[SourceTitle "playchess.com"]
[Source "ChessBase"]
[SourceQuality "1"]
[TimeControl "5400+30"]

1. e4 e6 {[%emt 0:00:07]} 2. Bc4 {[%emt 0:01:20]} d5 {[%emt 0:00:52]} 3. exd5 {[%emt 0:00:28]} exd5 {[%emt 0:00:06]} 4. Bb3 {[%emt 0:00:09]} Nf6 {[%emt 0:00:52]} 5. h3 {[%emt 0:00:38]} c5 {[%emt 0:02:41]} 6. d3 {[%emt 0:05:06]} Nc6 {[%emt 0:01:51]} 7. c3 {[%emt 0:00:30]} h6 {[%emt 0:00:30]} 8. Ne2 {[%emt 0:06:33]} Bd6 {[%emt 0:01:40]} 9. Bf4 {[%emt 0:00:00]} O-O {[%emt 0:01:28]} 10. Bxd6 {[%emt 0:00:00]} Qxd6 11. O-O {[%emt 0:04:47]} Re8 {[%emt 0:03:54]} 12. Ng3 {[%emt 0:00:00]} Bd7 {[%emt 0:03:32]} 13. Nd2 {[%emt 0:00:00]} Rad8 {[%emt 0:07:21]} 14. Bc2 {[%emt 0:00:00]} Qf4 {[%emt 0:03:10]} 15. Nf3 {[%emt 0:00:00]} Ne5 {[%emt 0:04:11]} 16. Nh2 {[%emt 0:01:27]} Bc6 {[%emt 0:03:20]} 17. Qc1 {[%emt 0:03:13]} Qxc1 {[%emt 0:01:32]} 18. Raxc1 {[%emt 0:00:31]} d4 {[%emt 0:01:18]} 19. c4 {[%emt 0:00:56]} Ng6 {[%emt 0:02:43]} 20. Rce1 {[%emt 0:02:30]} Nf4 {[%emt 0:00:55]} 21. f3 {[%emt 0:05:08]} Nd7 {[%emt 0:07:53]} 22. Ng4 {[%emt 0:01:17]} h5 {[%emt 0:01:11]} 23. Nf2 {[%emt 0:00:51]} Ne5 {[%emt 0:09:56]} 24. Nge4 {[%emt 0:03:00]} b6 {[%emt 0:01:03]} 25. Kh2 {[%emt 0:06:40]} h4 {[%emt 0:01:52]} 26. Rd1 {[%emt 0:02:14]} Ne2 {[%emt 0:00:53]} 27. Nh1 {[%emt 0:02:52]} f5 {[%emt 0:02:23]} 28. Ng5 {[%emt 0:07:55]} f4 {[%emt 0:01:18]} 29. Ne4 {[%emt 0:03:15]} Bxe4 {[%emt 0:00:26]} 30. fxe4 {[%emt 0:01:15]} g5 {[%emt 0:00:26]} 31. Nf2 {[%emt 0:05:18]} Ng3 {[%emt 0:00:48]} 32. Rfe1 {[%emt 0:00:51]} Kg7 {[%emt 0:00:36]} 33. Rd2 {[%emt 0:00:33]} f3 {[%emt 0:00:36]} 34. Ng4 {[%emt 0:02:45]} fxg2 {[%emt 0:01:15]} 35. Kxg2 {[%emt 0:00:33]} Nxg4 {[%emt 0:01:02]} 36. hxg4 {[%emt 0:00:12]} Rf8 {[%emt 0:00:23]} 37. Bd1 {[%emt 0:00:27]} Rde8 {[%emt 0:00:38]} 38. Bf3 {[%emt 0:00:39]} Re5 {[%emt 0:00:29]} 39. Rf2 {[%emt 0:00:57]} Kg6 {[%emt 0:02:09]} 40. a3 {[%emt 0:00:26]} Kg7 {[%emt 0:01:47]} 41. Rc1 {[%emt 0:00:29]} Re7 {[%emt 0:01:03]} 42. b4 {[%emt 0:01:27]} Ref7 {[%emt 0:00:55]} 43. Rcc2 {[%emt 0:01:52]} Nh1 {[%emt 0:00:56]} 0-1

[Event "28th Hit Open-A 2024"]
[Site "Nova Gorica"]
[Date "2024.02.02"]
[Round "9.42"]
[White "Petrovcic, Cvetko"]
[Black "Gratton, Damjan"]
[Result "0-1"]
[ECO "C29"]
[WhiteElo "1611"]
[BlackElo "1691"]
[Annotator "NA"]
[PlyCount "31"]
[EventDate "2024.01.22"]
[EventType "swiss"]
[EventCountry "SLO"]
[SourceTitle "playchess.com"]
[Source "ChessBase"]
[SourceQuality "1"]
[TimeControl "5400+30"]

1. e4 {[%emt 0:00:01]} d6 {[%emt 0:00:16]} 2. f4 {[%emt 0:00:01]} Nf6 {[%emt 0:00:13]} 3. Nc3 {[%emt 0:00:16]} e5 {[%emt 0:02:32]} 4. f5 {[%emt 0:00:45]} c6 {[%emt 0:00:35]} 5. Nf3 {[%emt 0:00:25]} Nbd7 {[%emt 0:01:35]} 6. d3 {[%emt 0:00:26]} d5 {[%emt 0:02:02]} 7. Bg5 {[%emt 0:00:04]} d4 {[%emt 0:01:44]} 8. Ne2 {[%emt 0:00:26]} Qa5+ {[%emt 0:03:02]} 9. Bd2 {[%emt 0:00:55]} Bb4 {[%emt 0:03:47]} 10. h3 {[%emt 0:00:39]} O-O {[%emt 0:01:23]} 11. g4 {[%emt 0:00:12]} c5 {[%emt 0:02:48]} 12. a3 {[%emt 0:00:32]} Bxd2+ {[%emt 0:00:27]} 13. Nxd2 {[%emt 0:00:02]} c4 {[%emt 0:02:02]} 14. b4 {[%emt 0:02:22]} cxb3 {[%emt 0:00:27]} 15. cxb3 {[%emt 0:00:03]} Nc5 {[%emt 0:04:22]} 16. b4 {[%emt 0:01:09]} 0-1